Cogmind - Beta 13 @@@ ROGUE MODE // 2024.04.27 @ 19:14:30 Player: Zaros426 Result: Destroyed by D-53 Grenadier with Mini Grenade Launcher Performance ------------- Evolutions (0) 0 Regions Visited (2) 400 Robots Destroyed (36) 180 Value Destroyed (664) 664 Prototype IDs (2) 40 Alien Tech Used (0) 0 Bonus (0) 0 TOTAL SCORE: 1284 Bonus ------- None Cogmind --------- Core Integrity 0/250 Matter 247/300 Energy 93/100 System Corruption 0% Temperature Cool (0) Movement Walking (260) Ox2 Location -10/Mines Parts ------- > --- POWER (1) -------- (None) > --- PROPULSION (2) --- Aluminum Leg > --- UTILITY (2) ------ Large Storage Unit > --- WEAPON (2) ------- Grenade Launcher > --- INVENTORY (15) --- Aluminum Leg Aluminum Leg Large Storage Unit Structural Scanner Improved Terrain Scanner Seismic Detector Assault Rifle Peak State ------------ > --- POWER ------------ Ion Engine > --- PROPULSION ------- Light Treads Light Treads > --- UTILITY ---------- Small Storage Unit Hacking Suite > --- WEAPON ----------- Assault Rifle Assault Rifle > --- INVENTORY -------- Aluminum Leg Aluminum Leg Structural Scanner Signal Interpreter Improved Terrain Scanner Seismic Detector Light Armor Plating Grenade Launcher [Rating: 10] Favorites ----------- Power Ion Engine Engine Ion Engine Propulsion Light Treads Treads Light Treads Leg Aluminum Leg Utility Small Storage Unit Device Seismic Detector Storage Small Storage Unit Processor Signal Interpreter Hackware Hacking Suite Protection Light Armor Plating Weapon Assault Rifle Ballistic Gun Assault Rifle Launcher Grenade Launcher Build | -11 -10 -10 ------- Run | Yrd Mat Min Slots Evolved . | . . . Power . | . . . Propulsion . | . . . Utility . | . . . Weapon . | . . . Parts Attached 21 | 7 11 3 Power 3 | 1 2 . Engine 3 | 1 2 . Core . | . . . Reactor . | . . . Propulsion 6 | 2 4 . Treads 3 | 2 1 . Leg 3 | . 3 . Wheel . | . . . Hover . | . . . Flight . | . . . Utility 7 | 2 4 1 Device 1 | 1 . . Storage 3 | 1 2 . Processor 1 | . 1 . Hackware 1 | . 1 . Protection 1 | . . 1 Artifact . | . . . Weapon 5 | 2 1 2 Energy Gun . | . . . Energy Cannon . | . . . Ballistic Gun 3 | 2 1 . Ballistic Cannon . | . . . Launcher 2 | . . 2 Special Weapon . | . . . Impact Weapon . | . . . Slashing Weapon . | . . . Piercing Weapon . | . . . Special Melee Weapon . | . . . Unidentified Prototypes . | . . . Parts Lost 8 | . 4 4 Power 2 | . 1 1 Propulsion 3 | . 2 1 Utility 1 | . . 1 Weapon 2 | . 1 1 Highest Loss Streak 4 | . 3 4 To Critical Strikes . | . . . Average Slot Usage (%) 90 | . 90 85 Engine 12 | . 12 10 Treads 14 | . 14 . Leg 13 | . 13 24 Device 2 | . 2 . Storage 14 | . 14 14 Processor 6 | . 6 10 Hackware 5 | . 5 . Ballistic Gun 20 | . 21 3 Naked Turns . | . . . Heaviest Build 47 | 15 47 31 Greatest Support 40 | 40 40 20 Greatest Overweight (x) 2 | 1 2 2 Average Overweight (x) . | . . 1 Largest Inventory Capacity 20 | 8 20 15 Average Capacity 10 | 7 11 15 Most Carried 9 | 3 9 9 Average Carried 6 | 1 7 8 Final Capacity 15 | 8 15 15 Final Carried 9 | 3 9 7 Class Distribution -------------------- 100% | Mutant Dominant Class ---------------- Mutant | -10/Materials Mutant | -10/Mines Resources | -11 -10 -10 ----------- Run | Yrd Mat Min Matter Collected 874 | 238 636 . Remotely . | . . . Salvage Created 1060 | 89 854 117 Parts 91 | 13 68 10 Haulers Intercepted . | . . . Recyclers Shooed 3 | 1 1 1 Parts Field Recycled . | . . . Retrieved Matter . | . . . Parts Self-Destructed . | . . . Prevented . | . . . Kills | -11 -10 -10 ------- Run | Yrd Mat Min Combat Hostiles Destroyed 21 | . 19 2 Guns 19 | . 19 . AOE 2 | . . 2 Classes Destroyed 8 | 1 7 . Worker 1 | . 1 . Builder 2 | . 1 1 Tunneler 6 | 6 . . Recycler 2 | . 1 1 Operator 1 | . 1 . Watcher 3 | . 3 . Swarmer 8 | . 6 2 Grunt 13 | . 13 . Best Kill Streak 6 | 2 6 4 Combat Bots Only 6 | . 6 2 Max Kills in Single Turn 2 | 1 2 2 Gunslinging 1 | . 1 . Exploded 2 | . . 2 Melee . | . . . Uniques/NPCs Destroyed . | . . . Combat | -11 -10 -10 -------- Run | Yrd Mat Min Hostile Shots Fired 91 | . 74 17 Missed 12 | . 11 1 Damage Taken 1182 | . 654 528 Core 270 | . 114 156 Absorbed by Shields . | . . . Core Remaining (%) 100 | 100 . . Volleys Fired 113 | 19 92 2 Largest 2 | 2 2 1 Hottest 40 | 40 40 30 Shots Fired 181 | 38 141 2 Gun 179 | 38 141 . Cannon . | . . . Launcher 2 | . . 2 Special . | . . . Kinetic 179 | 38 141 . Thermal . | . . . Explosive 2 | . . 2 Electromagnetic . | . . . Robot Hit Streak 13 | 7 13 2 Robot Miss Streak 5 | 5 4 . Penetration Max . | . . . Secondary Targets 1 | . 1 . Max Gunslinging Chain 1 | . 1 . Shots Hit Robots 121 | 21 99 1 Core Hits 54 | 6 41 7 Critical Kills . | . . . Critical Parts Destroyed 1 | . 1 . Critical Strikes 1 | . 1 . Destroy 1 | . 1 . Melee Attacks . | . . . Impact . | . . . Slashing . | . . . Piercing . | . . . Sneak Attacks . | . . . Combat Hostiles . | . . . Follow-up Attacks . | . . . Damage Inflicted 1823 | 255 1318 250 Guns 1573 | 255 1318 . Cannons . | . . . Explosions 250 | . . 250 Melee . | . . . Ramming . | . . . Kinetic 1573 | 255 1318 . Thermal . | . . . Explosive 250 | . . 250 Electromagnetic . | . . . Impact . | . . . Slashing . | . . . Piercing . | . . . Highest Corruption . | . . . Average Corruption . | . . . Corruption Purged . | . . . Corruption Blocked . | . . . Overload Shots . | . . . Overflow Damage 6 | . . 6 Projectiles . | . . . Explosions 6 | . . 6 Melee . | . . . Knockbacks . | . . . Impact . | . . . Kinetic . | . . . Secondary . | . . . Self-Inflicted Damage . | . . . Shots . | . . . Rammed . | . . . Targets Rammed . | . . . Kicked . | . . . Crushed . | . . . Highest Temperature 3 | . 3 . Average Temperature 2 | . 2 . Received Heat Transfer 309 | . 300 9 Siege Activations . | . . . Robots Corrupted . | . . . Combat Hostiles . | . . . Parts Fried . | . . . Impact Corruptions . | . . . Robots Melted . | . . . Combat Hostiles . | . . . Parts Melted . | . . . Heat Transferred . | . . . Parts Sabotaged . | . . . Parts Stolen . | . . . Parts Stripped . | . . . Power Chain Reactions . | . . . Alert | -11 -10 -10 ------- Run | Yrd Mat Min Peak Influence 392 | 30 392 132 Initial 74 | . 19 74 Average 172 | 11 200 84 Maximum Alert Level 1 | . 1 . Low Security (%) 57 | 100 49 100 Level 1 42 | . 50 . Level 2 . | . . . Level 3 . | . . . Level 4 . | . . . Level 5 . | . . . High Security . | . . . Max Security . | . . . Squads Dispatched 6 | . 6 . Investigation 5 | . 5 . Extermination . | . . . Reinforcement 1 | . 1 . Assault . | . . . Garrison . | . . . Intercept . | . . . Searches Triggered . | . . . Construction Impeded . | . . . Haulers Reinforced . | . . . Active Scanning Responses . | . . . Cargo Convoy Interrupts . | . . . Stealth | -11 -10 -10 --------- Run | Yrd Mat Min Distress Signals 2 | . 2 . Communications Jammed . | . . . Distress Signals . | . . . Times Spotted 34 | . 26 8 Peak Tracking Total 11 | . 7 11 Tactical Retreats 1 | . 1 . Traps | -11 -10 -10 ------- Run | Yrd Mat Min Traps Triggered 4 | . 4 . Indirectly . | . . . Trap Hack Attempts . | . . . Triggered . | . . . Disarmed 4 | . 4 . Reprogrammed . | . . . Reused . | . . . Traps Extracted . | . . . Installed . | . . . Triggered . | . . . Machines | -11 -10 -10 ---------- Run | Yrd Mat Min Machines Disabled . | . . . Max in Single Turn . | . . . Machines Repaired . | . . . Machines Dismantled . | . . . Machines Sabotaged . | . . . Overloaded Fab Kills . | . . . Hacking | -11 -10 -10 --------- Run | Yrd Mat Min Machines Accessed 7 | . 7 . Terminals 5 | . 5 . Fabricators . | . . . Repair Stations . | . . . Recycling Units 2 | . 2 . Scanalyzers . | . . . Garrison Access . | . . . Total Hacks 29 | . 29 . Successful 19 | . 19 . Failed 9 | . 9 . Catastrophic . | . . . Database Lockouts 1 | . 1 . Manual 16 | . 16 . Terminals 27 | . 27 . Fabricators . | . . . Repair Stations . | . . . Recycling Units 2 | . 2 . Scanalyzers . | . . . Garrison Access . | . . . Terminal Hacks 15 | . 15 . Robot Analysis 5 | . 5 . Prototype ID Bank 1 | . 1 . Alert Level 1 | . 1 . Locate Traps 1 | . 1 . Disarm Traps 1 | . 1 . Investigation Status 1 | . 1 . Recall Investigation 2 | . 2 . Recall Reinforcements 1 | . 1 . Hauler Manifests 1 | . 1 . Zone Layout 1 | . 1 . Fabricator Hacks . | . . . Repair Station Hacks . | . . . Recycling Unit Hacks . | . . . Scanalyzer . | . . . Garrison Access Hacks . | . . . Unauthorized Hacks 4 | . 4 . Terminals 2 | . 2 . Botnet 2 | . 2 . Fabricators . | . . . Repair Stations . | . . . Recycling Units 2 | . 2 . Tunnel 2 | . 2 . Scanalyzers . | . . . Garrison Access . | . . . Data Cores Recovered 1 | . 1 . Used . | . . . Hacking Detections 5 | . 5 . Full Trace Events 4 | . 4 . Feedback Events . | . . . Feedback Blocked . | . . . Robot Schematics Acquired . | . . . Robots Built . | . . . Authchips . | . . . Time . | . . . Total Robot Build Rating . | . . . Part Schematics Acquired . | . . . Parts Built . | . . . Authchips . | . . . Time . | . . . Total Part Build Rating . | . . . Parts Repaired . | . . . Time . | . . . Parts Recycled . | . . . Recycled Matter . | . . . Retrieved Matter . | . . . Retrieved Components . | . . . Parts Scanalyzed . | . . . Part Schematics Acquired . | . . . Parts Damaged . | . . . Bothacking | -11 -10 -10 ------------ Run | Yrd Mat Min Used RIF Installer . | . . . Robots Hacked . | . . . Non-combat . | . . . Combat . | . . . Robot Hacks Applied . | . . . Relay Couplers Released . | . . . Fabnet Peak Effective % . | . . . Robots Rewired . | . . . Allies Hacked . | . . . Hacks Repelled . | . . . Allies | -11 -10 -10 -------- Run | Yrd Mat Min Total Allies . | . . . Largest Group . | . . . Highest-Rated Group . | . . . Highest-Rated Ally . | . . . Total Orders . | . . . Ally Attacks . | . . . Total Damage . | . . . Kills . | . . . Allies Corrupted . | . . . Allies Melted . | . . . Intel | -11 -10 -10 ------- Run | Yrd Mat Min Robot Analysis Total 5 | . 5 . Derelict Logs Recovered . | . . . Drone Launches . | . . . Drone Recoveries . | . . . Exploration | -11 -10 -10 ------------- Run | Yrd Mat Min Turns Passed 1640 | 228 1379 33 Spaces Moved 765 | 101 651 13 Core 4 | 4 . . Treads 428 | 97 331 . Legs 333 | . 320 13 Wheels . | . . . Hover . | . . . Flight . | . . . Fastest Speed 50 | 50 120 190 Average Speed 168 | 157 169 195 Slowest Speed 260 | 160 260 260 Overloaded Moves . | . . . Propulsion Burnouts . | . . . Robots Hopped . | . . . Cave-ins Triggered . | . . . Exploration Rate (%) 35 | 8 84 13 Regions Visited 2 Branch Regions 1 Pre-discovered Areas 2 | . 2 . Known Exits Taken 1 | . 1 . Unknown Exits Taken 1 | 1 . . Scrap Searched . | . . . Spaces Dug . | . . . Terrain Destroyed 8 | . . 8 Melee . | . . . Projectile . | . . . AOE 8 | . . 8 Terrain Rammed . | . . . Walls Destroyed . | . . . Machines Disabled . | . . . Actions | -11 -10 -10 --------- Run | Yrd Mat Min Total 931 | 129 784 18 Wait 17 | . 17 . Move 763 | 100 650 13 Hop . | . . . Pick Up 14 | 3 11 . Fast Attach 12 | 7 5 . Attach 3 | . 2 1 Detach . | . . . Swap 6 | . 4 2 Drop 3 | . 3 . Fire 113 | 19 92 2 Melee . | . . . Ram . | . . . Kick . | . . . Crush . | . . . Escape Stasis . | . . . Rewire . | . . . Trap . | . . . Miscellaneous . | . . . Route ------- -11/Scrapyard -10/Materials (discovered 5 exits: *Mat x3 / *Min x2) -10/Mines (discovered 1 exit: *Mat) History --------- Turn | Location | Event 10 | -11/Scrapyard | Discovered new exit (range 15) 229 | -11/Scrapyard | Entered Materials 278 | -10/Materials | Discovered new exit (range 7) 306 | -10/Materials | Build established: Mutant 475 | -10/Materials | Discovered new exit (range 14) 611 | -10/Materials | Central database locked down 962 | -10/Materials | Discovered new exit (range 16) 981 | -10/Materials | Lost 3 parts (2n1w) 993 | -10/Materials | Identified exit to Materials 1119 | -10/Materials | Discovered exit to Materials (range 8) 1435 | -10/Materials | Discovered exit to Materials (range 15) 1602 | -10/Materials | Identified exit to Mines 1608 | -10/Materials | Entered Mines 1623 | -10/Mines | Assembled infested the area 1630 | -10/Mines | Joined a pair of Derelicts in attacking an 0b10 outpost 1633 | -10/Mines | Core integrity fell below 50% 1637 | -10/Mines | Discovered exit to Materials (range 16) 1640 | -10/Mines | Core integrity fell below 20% 1641 | -10/Mines | Destroyed by D-53 Grenadier with Mini Grenade Launcher Last Messages --------------- Something is scanning the area. 01623_ ALERT: Infestation in the mines, dispatching Demolisher response squad. 01630_ A derelict emerges from the shadows: "We've had our eye on this brand new outpost for a little while, just waiting for an opportunity to strike. Need some help?" 01630_ Y-45 Defender destroyed. 01632_ C-30 ARC bursts open, deploying its payload. 01632_ D-53 Grenadier unfolds itself. 01632_ Grenade Launcher destroyed. 01632_ O3-IV0(g) destroyed. 01632_ HE-ZMJ(g) destroyed. 01632_ Machine disabled. 01634_ S-10 Pest destroyed. 01635_ Ion Engine destroyed. 01635_ Y-45 Defender destroyed. 01636_ Discarded Signal Interpreter. 01636_ Aluminum Leg destroyed. 01637_ R-06 Scavenger destroyed. 01637_ U-05 Engineer destroyed. 01637_ Destroyed Flight Unit. 01637_ EXIT=FOUND: MATERIALS 01640_ Lgt. Armor Plating destroyed. Map ----- +----------------------------------------------------+ | | | | | | | | | | | | | | | | | | | | | | | | | | | | | | | | | | | | | ?????????????????????????????????????????????? | | ?????????????????????????????????????????????? | | ???????????????######??##????##??????????????? | | ??????????????##"!! ## #### ##?????????????? | | ??????????????#""![ ??????????????? | | ?????? ????#%[ ?????????????????? | | ?????< k # #???????????????????? | | ????? @ #???????????????????? | | ??????????# s #??????????????????? | | ??????????## ! ##??????????????????? | | ??? ##### |% ##??????????????????? | | ??? =%d* ##?????????????????? | | ??? *d a #?????????????????? | | ???# # r ##????????????????? | | ????# ??# ## ##???????????????? | | ?????????# ## a### #??????????? | | ?????????# #??????????? | | ?????????##### #### ????????????? | | ?????????????## ##????????????????? | | ??????????????# ####?????????????????? | | ?????????????# ###????????????????????? | | ?????????? #####??????????????????????? | | ??????? #???????????????????????????? | | ????????## ##????????????????????????????? | | ?????????## #??????????????????????????????? | | ??????????# ##???????????????????????????????? | | ??????????# ?????????????????????????????????? | | ??????????#??????????????????????????????????? | | ?????????????????????????????????????????????? | | ?????????????????????????????????????????????? | | ?????????????????????????????????????????????? | | ?????????????????????????????????????????????? | +----------------------------------------------------+ Best States ------------- Heat Dissipation 25 Energy Generation 10 Energy Capacity 250 Matter Stores 300 Matter Capacity 300 Sight Range 16 Terrain Scan Density 10 Armor Coverage 150 Evasion (%) 55 Recoil Reduction 2 Offensive Hacking 10 Item Schematics ----------------- None Robot Schematics ------------------ None Fabricated ------------ Nothing Alien Tech Used ----------------- None Achievements -------------- None Challenges ------------ None Game ------ Seed EfficiencyBombCompactor Manual? 0 Play Time 00:09:53 Cumulative 71.8 hours Start 2024.04.27 @ 19:05:17 End 2024.04.27 @ 19:14:30 Sessions 1 Manual Loads 0 Difficulty Rogue Special Mode None Game No. 79 Rogue 79 Adventurer 0 Explorer 0 Win Type - Total 0 Types 0/0/0/0/0/0/0/0/0 Lore% 36 Gallery% 51 Achievement% 37 Wizard Run 0 Options --------- Layout 0 ASCII 0 Keyboard 0 Movement Mouse Keybinds 0 Fullscreen 2 Font 24/Smallcaps Map View 183x50 Zoom Use 0% Tactical HUD 1 Map Filters NONE Filters NONE Steam 0 RUN: b7d35645-8aea-4998-bddc-d4824cf82235